[Event "Titled Tuesday Blitz February 28 Early 2023"]
[White "Ricaurte Lopez, Juan Carlos"]
[Black "Einarsson, Halldor Gretar"]
[WhiteFideId "3600327"]
[BlackFideId "2300150"]
[WhiteElo "2209"]
[BlackElo "2126"]
[Result "1-0"]
[Round "05"]
[TimeControl "180+2"]
[Date "2023.02.28"]
[WhiteClock "0:00:15"]
[BlackClock "0:00:03"]

1. e4 {[%clk 0:03:00]}  c5 {[%clk 0:02:56]} 2. Nf3 {[%clk 0:02:58]}  Nc6 {[%clk 0:02:55]} 3. d4 {[%clk 0:02:58]}  cxd4 {[%clk 0:02:53]} 4. Nxd4 {[%clk 0:02:59]}  Nf6 {[%clk 0:02:52]} 5. Nc3 {[%clk 0:03:00]}  e5 {[%clk 0:02:51]} 6. Ndb5 {[%clk 0:02:59]}  d6 {[%clk 0:02:50]} 7. Nd5 {[%clk 0:02:58]}  Nxd5 {[%clk 0:02:48]} 8. exd5 {[%clk 0:02:59]}  Nb8 {[%clk 0:02:43]} 9. c4 {[%clk 0:02:56]}  a6 {[%clk 0:02:39]} 10. Nc3 {[%clk 0:02:55]}  g6 {[%clk 0:02:37]} 11. Bd3 {[%clk 0:02:37]}  Bg7 {[%clk 0:02:35]} 12. O-O {[%clk 0:02:36]}  O-O {[%clk 0:02:33]} 13. Qe2 {[%clk 0:02:23]}  f5 {[%clk 0:02:31]} 14. f4 {[%clk 0:02:22]}  Nd7 {[%clk 0:02:26]} 15. Be3 {[%clk 0:02:16]}  Re8 {[%clk 0:02:10]} 16. Qf2 {[%clk 0:02:12]}  exf4 {[%clk 0:01:57]} 17. Bxf4 {[%clk 0:02:11]}  Ne5 {[%clk 0:01:57]} 18. Bxe5 {[%clk 0:01:56]}  Bxe5 {[%clk 0:01:56]} 19. Rac1 {[%clk 0:01:50]}  Qf6 {[%clk 0:01:42]} 20. Kh1 {[%clk 0:01:47]}  Bd7 {[%clk 0:01:38]} 21. Rc2 {[%clk 0:01:36]}  Rac8 {[%clk 0:01:36]} 22. g4 {[%clk 0:01:19]}  Bd4 {[%clk 0:01:24]} 23. Qg2 {[%clk 0:01:13]}  Re3 {[%clk 0:01:20]} 24. Rd2 {[%clk 0:00:29]}  Bxc3 {[%clk 0:00:52]} 25. bxc3 {[%clk 0:00:27]}  Qxc3 {[%clk 0:00:38]} 26. Bxf5 {[%clk 0:00:23]}  Bxf5 {[%clk 0:00:13]} 27. gxf5 {[%clk 0:00:23]}  Rf8 {[%clk 0:00:12]} 28. Rdf2 {[%clk 0:00:18]}  Kg7 {[%clk 0:00:09]} 29. fxg6 {[%clk 0:00:16]}  Rxf2 {[%clk 0:00:08]} 30. Qxf2 {[%clk 0:00:16]}  hxg6 {[%clk 0:00:03]} 31. Qf8+ {[%clk 0:00:16]}  Kh7 {[%clk 0:00:03]} 32. Rf7+ {[%clk 0:00:15]} 1-0


[Site "https://www.chess.com"]

[Event "Titled Tuesday Blitz February 28 Early 2023"]
[White "parintele_chess"]
[Black "Kriti Mayur Patel"]
[BlackFideId "35061780"]
[WhiteElo "2241"]
[BlackElo "1306"]
[Result "0-1"]
[Round "05"]
[TimeControl "180+2"]
[Date "2023.02.28"]
[WhiteClock "0:00:06"]
[BlackClock "0:01:38"]

1. d4 {[%clk 0:00:38]}  d5 {[%clk 0:02:59]} 2. c4 {[%clk 0:00:38]}  e6 {[%clk 0:02:59]} 3. Nc3 {[%clk 0:00:38]}  Nf6 {[%clk 0:02:59]} 4. cxd5 {[%clk 0:00:38]}  exd5 {[%clk 0:02:59]} 5. Bg5 {[%clk 0:00:38]}  Be7 {[%clk 0:03:00]} 6. e3 {[%clk 0:00:39]}  O-O {[%clk 0:03:00]} 7. Bd3 {[%clk 0:00:39]}  c6 {[%clk 0:03:00]} 8. Nf3 {[%clk 0:00:39]}  Nbd7 {[%clk 0:03:01]} 9. Qc2 {[%clk 0:00:40]}  Re8 {[%clk 0:03:01]} 10. O-O {[%clk 0:00:40]}  Nf8 {[%clk 0:03:02]} 11. Ne5 {[%clk 0:00:40]}  Be6 {[%clk 0:03:02]} 12. f4 {[%clk 0:00:40]}  Ng4 {[%clk 0:02:57]} 13. Bxe7 {[%clk 0:00:38]}  Qxe7 {[%clk 0:02:57]} 14. Rae1 {[%clk 0:00:35]}  f6 {[%clk 0:02:49]} 15. Nxg4 {[%clk 0:00:35]}  Bxg4 {[%clk 0:02:49]} 16. h3 {[%clk 0:00:35]}  Bh5 {[%clk 0:02:44]} 17. g4 {[%clk 0:00:35]}  Bg6 {[%clk 0:02:38]} 18. f5 {[%clk 0:00:28]}  Bf7 {[%clk 0:02:36]} 19. e4 {[%clk 0:00:28]}  Qd6 {[%clk 0:02:37]} 20. Qf2 {[%clk 0:00:23]}  Rad8 {[%clk 0:02:23]} 21. Qf4 {[%clk 0:00:18]}  dxe4 {[%clk 0:02:09]} 22. Rxe4 {[%clk 0:00:14]}  Rxe4 {[%clk 0:02:05]} 23. Qxd6 {[%clk 0:00:08]}  Rxg4+ {[%clk 0:02:00]} 24. hxg4 {[%clk 0:00:08]}  Rxd6 {[%clk 0:01:59]} 25. Re1 {[%clk 0:00:06]}  Rxd4 {[%clk 0:01:56]} 26. Bc2 {[%clk 0:00:06]}  Rxg4+ {[%clk 0:01:56]} 27. Kf2 {[%clk 0:00:07]}  Nd7 {[%clk 0:01:48]} 28. Re7 {[%clk 0:00:07]}  Rd4 {[%clk 0:01:48]} 29. Bb3 {[%clk 0:00:06]}  Bxb3 {[%clk 0:01:45]} 30. axb3 {[%clk 0:00:07]}  Kf8 {[%clk 0:01:46]} 31. Re6 {[%clk 0:00:07]}  Rd2+ {[%clk 0:01:44]} 32. Ke3 {[%clk 0:00:07]}  Rxb2 {[%clk 0:01:44]} 33. Rd6 {[%clk 0:00:08]}  Ne5 {[%clk 0:01:39]} 34. Ne4 {[%clk 0:00:06]}  Rxb3+ {[%clk 0:01:38]} 35. Kf4 {[%clk 0:00:06]}  Rf3# {[%clk 0:01:38]} 0-1


[Site "https://www.chess.com"]

[Event "Titled Tuesday Blitz February 28 Early 2023"]
[White "Lazavik, Denis"]
[Black "Nakamura, Hikaru"]
[WhiteFideId "13515110"]
[BlackFideId "2016192"]
[WhiteElo "2560"]
[BlackElo "2879"]
[Result "1/2-1/2"]
[Round "06"]
[TimeControl "180+2"]
[Date "2023.02.28"]
[WhiteClock "0:00:06"]
[BlackClock "0:00:10"]

1. d4 {[%clk 0:02:59]}  d6 {[%clk 0:02:56]} 2. Nf3 {[%clk 0:02:57]}  f5 {[%clk 0:02:55]} 3. g3 {[%clk 0:02:53]}  g6 {[%clk 0:02:55]} 4. Bg2 {[%clk 0:02:53]}  Bg7 {[%clk 0:02:55]} 5. O-O {[%clk 0:02:53]}  Nf6 {[%clk 0:02:56]} 6. b3 {[%clk 0:02:52]}  O-O {[%clk 0:02:56]} 7. Bb2 {[%clk 0:02:52]}  c6 {[%clk 0:02:56]} 8. c4 {[%clk 0:02:52]}  Qa5 {[%clk 0:02:55]} 9. Nc3 {[%clk 0:02:46]}  e5 {[%clk 0:02:54]} 10. Qd2 {[%clk 0:02:46]}  Qc7 {[%clk 0:02:48]} 11. d5 {[%clk 0:02:24]}  c5 {[%clk 0:02:39]} 12. Ng5 {[%clk 0:02:19]}  Qe7 {[%clk 0:02:30]} 13. Ne6 {[%clk 0:02:15]}  Bxe6 {[%clk 0:02:30]} 14. dxe6 {[%clk 0:02:16]}  e4 {[%clk 0:02:30]} 15. Nd5 {[%clk 0:02:14]}  Nxd5 {[%clk 0:02:30]} 16. cxd5 {[%clk 0:02:14]}  Bxb2 {[%clk 0:02:14]} 17. Qxb2 {[%clk 0:02:15]}  Na6 {[%clk 0:02:14]} 18. f3 {[%clk 0:02:14]}  exf3 {[%clk 0:02:06]} 19. Bxf3 {[%clk 0:02:12]}  Nc7 {[%clk 0:02:03]} 20. b4 {[%clk 0:02:01]}  cxb4 {[%clk 0:01:58]} 21. Qxb4 {[%clk 0:01:59]}  Na6 {[%clk 0:01:58]} 22. Qd4 {[%clk 0:01:56]}  Nc5 {[%clk 0:01:56]} 23. Kg2 {[%clk 0:01:56]}  Rac8 {[%clk 0:01:54]} 24. Rab1 {[%clk 0:01:55]}  Rc7 {[%clk 0:01:54]} 25. h4 {[%clk 0:01:52]}  h5 {[%clk 0:01:46]} 26. Rfd1 {[%clk 0:01:49]}  b6 {[%clk 0:01:43]} 27. Qf4 {[%clk 0:01:47]}  Kh7 {[%clk 0:01:41]} 28. Rd4 {[%clk 0:01:44]}  Rd8 {[%clk 0:01:35]} 29. a4 {[%clk 0:01:42]}  Rf8 {[%clk 0:01:30]} 30. Rb5 {[%clk 0:01:41]}  Nb7 {[%clk 0:01:30]} 31. Rb3 {[%clk 0:01:34]}  Rc2 {[%clk 0:01:25]} 32. Rbb4 {[%clk 0:01:12]}  Na5 {[%clk 0:01:07]} 33. Rd2 {[%clk 0:01:09]}  Rc5 {[%clk 0:01:05]} 34. Rd3 {[%clk 0:00:59]}  Kg7 {[%clk 0:00:57]} 35. Qd4+ {[%clk 0:00:57]}  Qf6 {[%clk 0:00:55]} 36. Qf4 {[%clk 0:00:56]}  Rd8 {[%clk 0:00:50]} 37. Rb1 {[%clk 0:00:51]}  Nc4 {[%clk 0:00:45]} 38. Rc1 {[%clk 0:00:44]}  Rdc8 {[%clk 0:00:45]} 39. Rdc3 {[%clk 0:00:33]}  Ne5 {[%clk 0:00:28]} 40. Rxc5 {[%clk 0:00:33]}  Rxc5 {[%clk 0:00:27]} 41. Rxc5 {[%clk 0:00:34]}  bxc5 {[%clk 0:00:28]} 42. Qd2 {[%clk 0:00:33]}  c4 {[%clk 0:00:27]} 43. Qb2 {[%clk 0:00:23]}  Qe7 {[%clk 0:00:25]} 44. Qb8 {[%clk 0:00:17]}  a5 {[%clk 0:00:20]} 45. Qb6 {[%clk 0:00:13]}  c3 {[%clk 0:00:21]} 46. Qxa5 {[%clk 0:00:13]}  g5 {[%clk 0:00:18]} 47. Qxc3 {[%clk 0:00:11]}  gxh4 {[%clk 0:00:19]} 48. gxh4 {[%clk 0:00:12]}  Qxh4 {[%clk 0:00:19]} 49. a5 {[%clk 0:00:11]}  Kg6 {[%clk 0:00:16]} 50. a6 {[%clk 0:00:11]}  Qa4 {[%clk 0:00:13]} 51. e7 {[%clk 0:00:08]}  Kf7 {[%clk 0:00:07]} 52. Qc7 {[%clk 0:00:08]}  Nxf3 {[%clk 0:00:06]} 53. exf3 {[%clk 0:00:05]}  Qa2+ {[%clk 0:00:06]} 54. Kh3 {[%clk 0:00:04]}  Qxd5 {[%clk 0:00:07]} 55. a7 {[%clk 0:00:03]}  Qxf3+ {[%clk 0:00:07]} 56. Kh2 {[%clk 0:00:03]}  Qf2+ {[%clk 0:00:08]} 57. Kh1 {[%clk 0:00:04]}  Qf1+ {[%clk 0:00:08]} 58. Kh2 {[%clk 0:00:04]}  Qf2+ {[%clk 0:00:09]} 59. Kh1 {[%clk 0:00:05]}  Qf1+ {[%clk 0:00:09]} 60. Kh2 {[%clk 0:00:06]}  Qf2+ {[%clk 0:00:10]} 1/2-1/2


[Site "https://www.chess.com"]

[Event "Titled Tuesday Blitz February 28 Early 2023"]
[White "Bacrot, Etienne"]
[Black "Dubov, Daniil"]
[WhiteFideId "605506"]
[BlackFideId "24126055"]
[WhiteElo "2667"]
[BlackElo "2802"]
[Result "1/2-1/2"]
[Round "06"]
[TimeControl "180+2"]
[Date "2023.02.28"]
[WhiteClock "0:00:12"]
[BlackClock "0:00:07"]

1. e4 {[%clk 0:03:00]}  c5 {[%clk 0:02:58]} 2. Nf3 {[%clk 0:03:00]}  d6 {[%clk 0:02:58]} 3. Bb5+ {[%clk 0:02:58]}  Nc6 {[%clk 0:02:55]} 4. O-O {[%clk 0:02:58]}  Bd7 {[%clk 0:02:52]} 5. Re1 {[%clk 0:02:58]}  Nf6 {[%clk 0:02:50]} 6. c3 {[%clk 0:02:57]}  a6 {[%clk 0:02:50]} 7. Bf1 {[%clk 0:02:57]}  Bg4 {[%clk 0:02:48]} 8. h3 {[%clk 0:02:57]}  Bxf3 {[%clk 0:02:48]} 9. Qxf3 {[%clk 0:02:57]}  g6 {[%clk 0:02:42]} 10. d3 {[%clk 0:02:55]}  Bg7 {[%clk 0:02:40]} 11. Be3 {[%clk 0:02:55]}  O-O {[%clk 0:02:39]} 12. Nd2 {[%clk 0:02:54]}  Nd7 {[%clk 0:02:31]} 13. a4 {[%clk 0:02:47]}  b5 {[%clk 0:02:30]} 14. axb5 {[%clk 0:02:42]}  axb5 {[%clk 0:02:31]} 15. Qd1 {[%clk 0:02:35]}  Rxa1 {[%clk 0:02:10]} 16. Qxa1 {[%clk 0:02:33]}  Qb6 {[%clk 0:02:10]} 17. Rd1 {[%clk 0:02:25]}  b4 {[%clk 0:02:03]} 18. Nc4 {[%clk 0:02:24]}  Qb7 {[%clk 0:02:03]} 19. d4 {[%clk 0:02:23]}  Ra8 {[%clk 0:01:56]} 20. Qc1 {[%clk 0:02:22]}  bxc3 {[%clk 0:01:51]} 21. bxc3 {[%clk 0:02:22]}  Qb3 {[%clk 0:01:48]} 22. e5 {[%clk 0:02:07]}  cxd4 {[%clk 0:01:39]} 23. cxd4 {[%clk 0:02:02]}  dxe5 {[%clk 0:01:39]} 24. d5 {[%clk 0:01:16]}  Nd4 {[%clk 0:00:55]} 25. Nxe5 {[%clk 0:01:15]}  Bxe5 {[%clk 0:00:29]} 26. Bxd4 {[%clk 0:01:13]}  Bxd4 {[%clk 0:00:30]} 27. Rxd4 {[%clk 0:01:13]}  Qb6 {[%clk 0:00:30]} 28. Re4 {[%clk 0:01:10]}  Ra2 {[%clk 0:00:24]} 29. Qe1 {[%clk 0:01:07]}  Nf6 {[%clk 0:00:15]} 30. Rxe7 {[%clk 0:01:06]}  Nxd5 {[%clk 0:00:14]} 31. Bc4 {[%clk 0:00:24]}  Rb2 {[%clk 0:00:10]} 32. Bxd5 {[%clk 0:00:21]}  Rb1 {[%clk 0:00:10]} 33. Bxf7+ {[%clk 0:00:18]}  Kf8 {[%clk 0:00:09]} 34. Bc4 {[%clk 0:00:12]}  Rxe1+ {[%clk 0:00:06]} 35. Rxe1 {[%clk 0:00:13]}  Qb4 {[%clk 0:00:06]} 36. Rc1 {[%clk 0:00:13]}  Qd2 {[%clk 0:00:06]} 37. Rb1 {[%clk 0:00:12]}  Qc2 {[%clk 0:00:06]} 38. Rb8+ {[%clk 0:00:12]}  Kg7 {[%clk 0:00:06]} 39. Bf1 {[%clk 0:00:12]}  Qc7 {[%clk 0:00:06]} 40. Rb5 {[%clk 0:00:12]}  Qa7 {[%clk 0:00:06]} 41. g3 {[%clk 0:00:12]}  h6 {[%clk 0:00:06]} 42. h4 {[%clk 0:00:13]}  Qc7 {[%clk 0:00:06]} 43. Rd5 {[%clk 0:00:12]}  Qe7 {[%clk 0:00:06]} 44. Bg2 {[%clk 0:00:11]}  Qe1+ {[%clk 0:00:05]} 45. Bf1 {[%clk 0:00:11]}  Qe6 {[%clk 0:00:06]} 46. Rd3 {[%clk 0:00:11]}  Qb6 {[%clk 0:00:05]} 47. Re3 {[%clk 0:00:12]}  Qc5 {[%clk 0:00:05]} 48. Bg2 {[%clk 0:00:11]}  g5 {[%clk 0:00:05]} 49. hxg5 {[%clk 0:00:11]}  hxg5 {[%clk 0:00:05]} 50. Bf1 {[%clk 0:00:12]}  Qc1 {[%clk 0:00:05]} 51. Kg2 {[%clk 0:00:12]}  Qc6+ {[%clk 0:00:06]} 52. Kg1 {[%clk 0:00:12]}  Qc1 {[%clk 0:00:06]} 53. Re5 {[%clk 0:00:12]}  Kf6 {[%clk 0:00:06]} 54. Re3 {[%clk 0:00:12]}  Qc5 {[%clk 0:00:06]} 55. Kg2 {[%clk 0:00:12]}  Qc6+ {[%clk 0:00:06]} 56. Kg1 {[%clk 0:00:12]}  Qc5 {[%clk 0:00:07]} 57. Bg2 {[%clk 0:00:12]}  Qc1+ {[%clk 0:00:07]} 58. Bf1 {[%clk 0:00:12]}  Qc5 {[%clk 0:00:07]} 1/2-1/2


[Site "https://www.chess.com"]

[Event "Titled Tuesday Blitz February 28 Early 2023"]
[White "Mitrabha, Guha"]
[Black "Paravyan, David"]
[WhiteFideId "5057000"]
[BlackFideId "4194985"]
[WhiteElo "2520"]
[BlackElo "2577"]
[Result "0-1"]
[Round "06"]
[TimeControl "180+2"]
[Date "2023.02.28"]
[WhiteClock "0:00:02"]
[BlackClock "0:00:06"]

1. d4 {[%clk 0:03:00]}  Nf6 {[%clk 0:02:59]} 2. Nf3 {[%clk 0:03:00]}  g6 {[%clk 0:02:59]} 3. g3 {[%clk 0:03:00]}  Bg7 {[%clk 0:02:59]} 4. Bg2 {[%clk 0:03:00]}  O-O {[%clk 0:02:59]} 5. O-O {[%clk 0:03:01]}  d5 {[%clk 0:03:00]} 6. c4 {[%clk 0:02:56]}  c6 {[%clk 0:03:00]} 7. cxd5 {[%clk 0:02:56]}  cxd5 {[%clk 0:03:01]} 8. Nc3 {[%clk 0:02:57]}  Ne4 {[%clk 0:03:01]} 9. Qb3 {[%clk 0:02:56]}  Nxc3 {[%clk 0:02:59]} 10. bxc3 {[%clk 0:02:57]}  Nc6 {[%clk 0:02:59]} 11. Nd2 {[%clk 0:02:55]}  e6 {[%clk 0:02:57]} 12. e4 {[%clk 0:02:55]}  Na5 {[%clk 0:02:52]} 13. Qc2 {[%clk 0:02:49]}  b6 {[%clk 0:02:51]} 14. Re1 {[%clk 0:02:46]}  Bb7 {[%clk 0:02:50]} 15. e5 {[%clk 0:02:35]}  Rc8 {[%clk 0:02:50]} 16. h4 {[%clk 0:02:30]}  Qc7 {[%clk 0:02:47]} 17. Re3 {[%clk 0:02:25]}  h5 {[%clk 0:02:12]} 18. Qd1 {[%clk 0:02:15]}  Bh6 {[%clk 0:02:01]} 19. Rf3 {[%clk 0:02:15]}  Bg7 {[%clk 0:01:47]} 20. Nf1 {[%clk 0:01:58]}  Qe7 {[%clk 0:00:59]} 21. Bg5 {[%clk 0:01:56]}  Qa3 {[%clk 0:00:59]} 22. Qd2 {[%clk 0:01:51]}  Nc4 {[%clk 0:00:54]} 23. Qf4 {[%clk 0:01:51]}  Kh7 {[%clk 0:00:53]} 24. g4 {[%clk 0:01:47]}  hxg4 {[%clk 0:00:40]} 25. Qxg4 {[%clk 0:01:46]}  Bxe5 {[%clk 0:00:38]} 26. h5 {[%clk 0:01:36]}  Bg7 {[%clk 0:00:08]} 27. hxg6+ {[%clk 0:00:59]}  fxg6 {[%clk 0:00:09]} 28. Rh3+ {[%clk 0:01:00]}  Kg8 {[%clk 0:00:09]} 29. Qxe6+ {[%clk 0:01:00]}  Rf7 {[%clk 0:00:10]} 30. Qxg6 {[%clk 0:01:01]}  Qb2 {[%clk 0:00:08]} 31. Rd1 {[%clk 0:00:43]}  Qxf2+ {[%clk 0:00:08]} 32. Kh1 {[%clk 0:00:44]}  Re8 {[%clk 0:00:07]} 33. Qh7+ {[%clk 0:00:29]}  Kf8 {[%clk 0:00:07]} 34. Bh6 {[%clk 0:00:29]}  Re2 {[%clk 0:00:07]} 35. Bxg7+ {[%clk 0:00:14]}  Rxg7 {[%clk 0:00:04]} 36. Qh8+ {[%clk 0:00:14]}  Rg8 {[%clk 0:00:04]} 37. Qh6+ {[%clk 0:00:07]}  Ke7 {[%clk 0:00:04]} 38. Qh7+ {[%clk 0:00:08]}  Qf7 {[%clk 0:00:05]} 39. Qh4+ {[%clk 0:00:07]}  Kd7 {[%clk 0:00:03]} 40. Ng3 {[%clk 0:00:08]}  Rf2 {[%clk 0:00:01]} 41. Re1 {[%clk 0:00:05]}  Rf4 {[%clk 0:00:02]} 42. Qh6 {[%clk 0:00:04]}  Rf6 {[%clk 0:00:02]} 43. Qh4 {[%clk 0:00:03]}  Rf4 {[%clk 0:00:02]} 44. Qh7 {[%clk 0:00:03]}  Rg7 {[%clk 0:00:02]} 45. Qh8 {[%clk 0:00:03]}  Kc7 {[%clk 0:00:02]} 46. Nh5 {[%clk 0:00:02]}  Rxg2 {[%clk 0:00:01]} 47. Nxf4 {[%clk 0:00:02]}  Rg8 {[%clk 0:00:01]} 48. Qh7 {[%clk 0:00:01]}  Qxh7 {[%clk 0:00:01]} 49. Rxh7+ {[%clk 0:00:02]}  Kc6 {[%clk 0:00:02]} 50. Ree7 {[%clk 0:00:03]}  Bc8 {[%clk 0:00:02]} 51. Rc7+ {[%clk 0:00:03]}  Kb5 {[%clk 0:00:01]} 52. Nxd5 {[%clk 0:00:04]}  Bf5 {[%clk 0:00:02]} 53. Rxa7 {[%clk 0:00:03]}  Be4+ {[%clk 0:00:02]} 54. Kh2 {[%clk 0:00:04]}  Bxd5 {[%clk 0:00:02]} 55. Rac7 {[%clk 0:00:05]}  Ne3 {[%clk 0:00:02]} 56. Rhe7 {[%clk 0:00:04]}  Nf1+ {[%clk 0:00:02]} 57. Kh3 {[%clk 0:00:04]}  Rg3+ {[%clk 0:00:02]} 58. Kh4 {[%clk 0:00:05]}  Bxa2 {[%clk 0:00:02]} 59. Re5+ {[%clk 0:00:05]}  Ka4 {[%clk 0:00:02]} 60. c4 {[%clk 0:00:06]}  Kb4 {[%clk 0:00:01]} 61. c5 {[%clk 0:00:04]}  bxc5 {[%clk 0:00:02]} 62. dxc5 {[%clk 0:00:05]}  Rf3 {[%clk 0:00:03]} 63. c6 {[%clk 0:00:04]}  Ne3 {[%clk 0:00:02]} 64. Rb7+ {[%clk 0:00:05]}  Ka4 {[%clk 0:00:02]} 65. c7 {[%clk 0:00:05]}  Nf5+ {[%clk 0:00:01]} 66. Kg5 {[%clk 0:00:05]}  Nd6 {[%clk 0:00:01]} 67. Rb8 {[%clk 0:00:02]}  Rc3 {[%clk 0:00:01]} 68. Re6 {[%clk 0:00:02]}  Bxe6 {[%clk 0:00:02]} 69. Rb6 {[%clk 0:00:02]}  Bd5 {[%clk 0:00:02]} 70. Rxd6 {[%clk 0:00:03]}  Bb7 {[%clk 0:00:02]} 71. Rd7 {[%clk 0:00:03]}  Bc8 {[%clk 0:00:03]} 72. Re7 {[%clk 0:00:04]}  Kb5 {[%clk 0:00:03]} 73. Kf6 {[%clk 0:00:05]}  Kb6 {[%clk 0:00:04]} 74. Rg7 {[%clk 0:00:05]}  Kc6 {[%clk 0:00:04]} 75. Ke5 {[%clk 0:00:06]}  Bd7 {[%clk 0:00:04]} 76. c8=Q+ {[%clk 0:00:05]}  Bxc8 {[%clk 0:00:04]} 77. Kd4 {[%clk 0:00:06]}  Rc1 {[%clk 0:00:04]} 78. Rg6+ {[%clk 0:00:07]}  Kc7 {[%clk 0:00:04]} 79. Rg7+ {[%clk 0:00:07]}  Kd6 {[%clk 0:00:05]} 80. Rg8 {[%clk 0:00:06]}  Be6 {[%clk 0:00:05]} 81. Rd8+ {[%clk 0:00:07]}  Ke7 {[%clk 0:00:06]} 82. Rh8 {[%clk 0:00:07]}  Rd1+ {[%clk 0:00:06]} 83. Ke5 {[%clk 0:00:07]}  Rd5+ {[%clk 0:00:06]} 84. Ke4 {[%clk 0:00:08]}  Ra5 {[%clk 0:00:07]} 85. Rh7+ {[%clk 0:00:08]}  Kd6 {[%clk 0:00:08]} 86. Rh8 {[%clk 0:00:08]}  Ra4+ {[%clk 0:00:08]} 87. Ke3 {[%clk 0:00:09]}  Ke5 {[%clk 0:00:09]} 88. Re8 {[%clk 0:00:09]}  Ra3+ {[%clk 0:00:09]} 89. Kd2 {[%clk 0:00:10]}  Kd5 {[%clk 0:00:10]} 90. Ke2 {[%clk 0:00:10]}  Bf5 {[%clk 0:00:10]} 91. Rd8+ {[%clk 0:00:09]}  Ke4 {[%clk 0:00:10]} 92. Re8+ {[%clk 0:00:10]}  Kf4 {[%clk 0:00:11]} 93. Kd2 {[%clk 0:00:10]}  Rd3+ {[%clk 0:00:11]} 94. Ke2 {[%clk 0:00:10]}  Rd4 {[%clk 0:00:08]} 95. Re7 {[%clk 0:00:10]}  Bg4+ {[%clk 0:00:08]} 96. Ke1 {[%clk 0:00:06]}  Kg3 {[%clk 0:00:08]} 97. Kf1 {[%clk 0:00:03]}  Rd2 {[%clk 0:00:07]} 98. Re3+ {[%clk 0:00:01]}  Bf3 {[%clk 0:00:08]} 99. Re5 {[%clk 0:00:02]}  Rh2 {[%clk 0:00:08]} 100. Ke1 {[%clk 0:00:02]}  Kf4 {[%clk 0:00:06]} 101. Re8 {[%clk 0:00:02]}  Be4 {[%clk 0:00:06]} 0-1


[Site "https://www.chess.com"]

[Event "Titled Tuesday Blitz February 28 Early 2023"]
[White "Erigaisi Arjun"]
[Black "Grigoriants, Sergey"]
[WhiteFideId "35009192"]
[BlackFideId "4130804"]
[WhiteElo "2737"]
[BlackElo "2502"]
[Result "1-0"]
[Round "06"]
[TimeControl "180+2"]
[Date "2023.02.28"]
[WhiteClock "0:00:16"]
[BlackClock "0:00:01"]

1. c4 {[%clk 0:03:00]}  e5 {[%clk 0:02:54]} 2. d3 {[%clk 0:02:59]}  Nf6 {[%clk 0:02:52]} 3. Nf3 {[%clk 0:03:00]}  Nc6 {[%clk 0:02:40]} 4. a3 {[%clk 0:03:00]}  d5 {[%clk 0:02:35]} 5. cxd5 {[%clk 0:03:00]}  Nxd5 {[%clk 0:02:35]} 6. e4 {[%clk 0:03:01]}  Nf6 {[%clk 0:02:35]} 7. Be2 {[%clk 0:03:00]}  Bc5 {[%clk 0:02:34]} 8. O-O {[%clk 0:02:56]}  O-O {[%clk 0:02:31]} 9. Be3 {[%clk 0:02:54]}  Bb6 {[%clk 0:02:29]} 10. Nbd2 {[%clk 0:02:50]}  Bxe3 {[%clk 0:02:10]} 11. fxe3 {[%clk 0:02:50]}  Ng4 {[%clk 0:02:11]} 12. Nc4 {[%clk 0:02:46]}  b5 {[%clk 0:02:06]} 13. h3 {[%clk 0:02:16]}  bxc4 {[%clk 0:02:06]} 14. hxg4 {[%clk 0:02:17]}  cxd3 {[%clk 0:02:07]} 15. Qxd3 {[%clk 0:02:13]}  Bxg4 {[%clk 0:01:51]} 16. Rac1 {[%clk 0:02:13]}  Bxf3 {[%clk 0:01:47]} 17. Rxf3 {[%clk 0:02:10]}  Qxd3 {[%clk 0:01:24]} 18. Bxd3 {[%clk 0:02:11]}  Nd8 {[%clk 0:01:24]} 19. Rxc7 {[%clk 0:02:01]}  Ne6 {[%clk 0:01:24]} 20. Re7 {[%clk 0:02:02]}  Ng5 {[%clk 0:01:13]} 21. Rf2 {[%clk 0:01:53]}  Rfe8 {[%clk 0:01:10]} 22. Rb7 {[%clk 0:01:33]}  Reb8 {[%clk 0:01:06]} 23. Rc7 {[%clk 0:01:33]}  Rc8 {[%clk 0:01:06]} 24. Rfc2 {[%clk 0:01:32]}  Rxc7 {[%clk 0:01:06]} 25. Rxc7 {[%clk 0:01:33]}  a5 {[%clk 0:01:01]} 26. Bc4 {[%clk 0:01:22]}  Kf8 {[%clk 0:00:42]} 27. Bd5 {[%clk 0:01:18]}  Rb8 {[%clk 0:00:42]} 28. b3 {[%clk 0:01:18]}  Rb6 {[%clk 0:00:24]} 29. Ra7 {[%clk 0:01:15]}  Rb5 {[%clk 0:00:22]} 30. Kf2 {[%clk 0:01:08]}  f5 {[%clk 0:00:20]} 31. Ke2 {[%clk 0:00:46]}  Nxe4 {[%clk 0:00:20]} 32. Be6 {[%clk 0:00:47]}  g6 {[%clk 0:00:16]} 33. Rf7+ {[%clk 0:00:42]}  Ke8 {[%clk 0:00:15]} 34. Rxh7 {[%clk 0:00:42]}  Rc5 {[%clk 0:00:12]} 35. Bf7+ {[%clk 0:00:36]}  Kd8 {[%clk 0:00:10]} 36. Bxg6 {[%clk 0:00:32]}  Rc2+ {[%clk 0:00:10]} 37. Kd1 {[%clk 0:00:32]}  Rxg2 {[%clk 0:00:06]} 38. Bxf5 {[%clk 0:00:32]}  Nc3+ {[%clk 0:00:06]} 39. Ke1 {[%clk 0:00:31]}  Rb2 {[%clk 0:00:05]} 40. Rd7+ {[%clk 0:00:24]}  Ke8 {[%clk 0:00:05]} 41. Rd3 {[%clk 0:00:25]}  Nb1 {[%clk 0:00:03]} 42. b4 {[%clk 0:00:21]}  axb4 {[%clk 0:00:02]} 43. axb4 {[%clk 0:00:22]}  Rxb4 {[%clk 0:00:03]} 44. Kd1 {[%clk 0:00:22]}  Ra4 {[%clk 0:00:01]} 45. Bd7+ {[%clk 0:00:16]} 1-0


[Site "https://www.chess.com"]